Department Family,Entity,Date,Expense Type,Expense Area,Supplier,Amount in sterling
Companies House,CH,03/11/2023,Adjudicator General,Scotland,WALKER LOVE,8028.94
Companies House,CH,15/11/2023,CE Misc Additions TY,Infrastructure,KINGSFIELD COMPUTER PRODUCTS LTD,7591.74
Companies House,CH,22/11/2023,CE Misc Additions TY,Infrastructure,KINGSFIELD COMPUTER PRODUCTS LTD,20244.64
Companies House,CH,15/11/2023,CE Misc Additions TY,Infrastructure,KINGSFIELD COMPUTER PRODUCTS LTD,58750
Companies House,CH,30/11/2023,CE Misc Additions TY,Infrastructure,KINGSFIELD COMPUTER PRODUCTS LTD,12652.9
Companies House,CH,02/11/2023,Childcare Vouchers,Accounting,PLUXEE UK LTD,1098
Companies House,CH,02/11/2023,Childcare Vouchers,Accounting,PLUXEE UK LTD,1098
Companies House,CH,08/11/2023,Cloud Services,Infrastructure Engineering,Amazon Web Services,191733.37
Companies House,CH,08/11/2023,Cloud Services,Infrastructure Engineering,Amazon Web Services,702.68
Companies House,CH,08/11/2023,Cloud Services,Infrastructure Engineering,Amazon Web Services,11917.14
Companies House,CH,08/11/2023,Cloud Services,Infrastructure Engineering,Amazon Web Services,4089.56
Companies House,CH,10/11/2023,Computer Equipment,Infrastructure,VOHKUS LIMITED,1308
Companies House,CH,03/11/2023,Consultants Computer,Accounting,Advanced Business Solutions,6615
Companies House,CH,03/11/2023,Consultants Computer,Accounting,Advanced Business Solutions,727.5
Companies House,CH,03/11/2023,Consultants Computer,Accounting,Advanced Business Solutions,727.5
Companies House,CH,20/11/2023,Contact Centre,Filing,Arvato Limited,34929.11
Companies House,CH,13/11/2023,Contact Centre,Filing,Arvato Limited,20929.59
Companies House,CH,03/11/2023,Contact Centre,Filing,Arvato Limited,230957.74
Companies House,CH,03/11/2023,Contact Centre,Filing,Arvato Limited,23982
Companies House,CH,13/11/2023,Contact Centre,Filing,Arvato Limited,-3514.2
Companies House,CH,17/11/2023,Contract Staff,Accounting,ALEXANDER MANN SOLUTIONS,2230.38
Companies House,CH,13/11/2023,Contract Staff,Accounting,ALEXANDER MANN SOLUTIONS,4095.36
Companies House,CH,24/11/2023,Contract Staff,Accounting,ALEXANDER MANN SOLUTIONS,2230.38
Companies House,CH,13/11/2023,Contract Staff,Accounting,ALEXANDER MANN SOLUTIONS,4460.76
Companies House,CH,17/11/2023,Contract Staff,Accounting,ALEXANDER MANN SOLUTIONS,4095.36
Companies House,CH,27/11/2023,Contract Staff,Accounting,ALEXANDER MANN SOLUTIONS,4095.36
Companies House,CH,13/11/2023,Contract Staff,Accounting,ALEXANDER MANN SOLUTIONS,2230.38
Companies House,CH,03/11/2023,Contract Staff,Accounting,ALEXANDER MANN SOLUTIONS,4095.36
Companies House,CH,24/11/2023,Contract Staff,Architecture & Design,ALEXANDER MANN SOLUTIONS,4311.48
Companies House,CH,24/11/2023,Contract Staff,Architecture & Design,ALEXANDER MANN SOLUTIONS,4130.46
Companies House,CH,27/11/2023,Contract Staff,Architecture & Design,ALEXANDER MANN SOLUTIONS,4090.46
Companies House,CH,17/11/2023,Contract Staff,Architecture & Design,ALEXANDER MANN SOLUTIONS,5164.02
Companies House,CH,10/11/2023,Contract Staff,Architecture & Design,ALEXANDER MANN SOLUTIONS,5164.02
Companies House,CH,10/11/2023,Contract Staff,Architecture & Design,ALEXANDER MANN SOLUTIONS,3695.58
Companies House,CH,03/11/2023,Contract Staff,Architecture & Design,ALEXANDER MANN SOLUTIONS,4311.48
Companies House,CH,24/11/2023,Contract Staff,Architecture & Design,ALEXANDER MANN SOLUTIONS,4410.42
Companies House,CH,13/11/2023,Contract Staff,Architecture & Design,ALEXANDER MANN SOLUTIONS,1908.89
Companies House,CH,13/11/2023,Contract Staff,Architecture & Design,ALEXANDER MANN SOLUTIONS,5317.62
Companies House,CH,10/11/2023,Contract Staff,Architecture & Design,ALEXANDER MANN SOLUTIONS,4410.42
Companies House,CH,10/11/2023,Contract Staff,Architecture & Design,ALEXANDER MANN SOLUTIONS,4410.42
Companies House,CH,08/11/2023,Contract Staff,Architecture & Design,ALEXANDER MANN SOLUTIONS,4460.76
Companies House,CH,24/11/2023,Contract Staff,Architecture & Design,ALEXANDER MANN SOLUTIONS,4619.52
Companies House,CH,13/11/2023,Contract Staff,Architecture & Design,ALEXANDER MANN SOLUTIONS,4914.42
Companies House,CH,24/11/2023,Contract Staff,Architecture & Design,ALEXANDER MANN SOLUTIONS,4311.48
Companies House,CH,03/11/2023,Contract Staff,Architecture & Design,ALEXANDER MANN SOLUTIONS,4619.52
Companies House,CH,10/11/2023,Contract Staff,Architecture & Design,ALEXANDER MANN SOLUTIONS,4619.52
Companies House,CH,17/11/2023,Contract Staff,Architecture & Design,ALEXANDER MANN SOLUTIONS,7329.52
Companies House,CH,24/11/2023,Contract Staff,Architecture & Design,ALEXANDER MANN SOLUTIONS,5164.02
Companies House,CH,13/11/2023,Contract Staff,Architecture & Design,ALEXANDER MANN SOLUTIONS,3304.37
Companies House,CH,24/11/2023,Contract Staff,Architecture & Design,ALEXANDER MANN SOLUTIONS,3190.57
Companies House,CH,17/11/2023,Contract Staff,Architecture & Design,ALEXANDER MANN SOLUTIONS,4914.42
Companies House,CH,27/11/2023,Contract Staff,Architecture & Design,ALEXANDER MANN SOLUTIONS,3449.18
Companies House,CH,03/11/2023,Contract Staff,Architecture & Design,ALEXANDER MANN SOLUTIONS,4772.22
Companies House,CH,13/11/2023,Contract Staff,Architecture & Design,ALEXANDER MANN SOLUTIONS,3695.58
Companies House,CH,13/11/2023,Contract Staff,Architecture & Design,ALEXANDER MANN SOLUTIONS,4095.36
Companies House,CH,13/11/2023,Contract Staff,Architecture & Design,ALEXANDER MANN SOLUTIONS,3780.36
Companies House,CH,17/11/2023,Contract Staff,Architecture & Design,ALEXANDER MANN SOLUTIONS,4311.48
Companies House,CH,17/11/2023,Contract Staff,Architecture & Design,ALEXANDER MANN SOLUTIONS,4311.48
Companies House,CH,10/11/2023,Contract Staff,Architecture & Design,ALEXANDER MANN SOLUTIONS,4914.42
Companies House,CH,17/11/2023,Contract Staff,Architecture & Design,ALEXANDER MANN SOLUTIONS,4410.42
Companies House,CH,27/11/2023,Contract Staff,Architecture & Design,ALEXANDER MANN SOLUTIONS,4095.36
Companies House,CH,24/11/2023,Contract Staff,Architecture & Design,ALEXANDER MANN SOLUTIONS,8820.84
Companies House,CH,03/11/2023,Contract Staff,Architecture & Design,ALEXANDER MANN SOLUTIONS,4410.42
Companies House,CH,17/11/2023,Contract Staff,Architecture & Design,ALEXANDER MANN SOLUTIONS,4095.36
Companies House,CH,13/11/2023,Contract Staff,Architecture & Design,ALEXANDER MANN SOLUTIONS,3780.36
Companies House,CH,27/11/2023,Contract Staff,Architecture & Design,ALEXANDER MANN SOLUTIONS,4914.42
Companies House,CH,17/11/2023,Contract Staff,Architecture & Design,ALEXANDER MANN SOLUTIONS,5317.62
Companies House,CH,17/11/2023,Contract Staff,Architecture & Design,ALEXANDER MANN SOLUTIONS,5113.08
Companies House,CH,13/11/2023,Contract Staff,Architecture & Design,ALEXANDER MANN SOLUTIONS,4095.36
Companies House,CH,13/11/2023,Contract Staff,Architecture & Design,ALEXANDER MANN SOLUTIONS,3780.36
Companies House,CH,10/11/2023,Contract Staff,Architecture & Design,ALEXANDER MANN SOLUTIONS,4311.48
Companies House,CH,03/11/2023,Contract Staff,Architecture & Design,ALEXANDER MANN SOLUTIONS,4311.48
Companies House,CH,24/11/2023,Contract Staff,Architecture & Design,ALEXANDER MANN SOLUTIONS,3695.58
Companies House,CH,17/11/2023,Contract Staff,Architecture & Design,ALEXANDER MANN SOLUTIONS,3780.36
Companies House,CH,13/11/2023,Contract Staff,Architecture & Design,ALEXANDER MANN SOLUTIONS,3780.36
Companies House,CH,17/11/2023,Contract Staff,Architecture & Design,ALEXANDER MANN SOLUTIONS,4130.46
Companies House,CH,17/11/2023,Contract Staff,Architecture & Design,ALEXANDER MANN SOLUTIONS,4619.52
Companies House,CH,17/11/2023,Contract Staff,Architecture & Design,ALEXANDER MANN SOLUTIONS,8921.52
Companies House,CH,13/11/2023,Contract Staff,Architecture & Design,ALEXANDER MANN SOLUTIONS,4311.48
Companies House,CH,13/11/2023,Contract Staff,Architecture & Design,ALEXANDER MANN SOLUTIONS,3449.18
Companies House,CH,17/11/2023,Contract Staff,Architecture & Design,ALEXANDER MANN SOLUTIONS,3780.36
Companies House,CH,08/11/2023,Contract Staff,Architecture & Design,ALEXANDER MANN SOLUTIONS,3780.36
Companies House,CH,24/11/2023,Contract Staff,Architecture & Design,ALEXANDER MANN SOLUTIONS,4725.42
Companies House,CH,27/11/2023,Contract Staff,Architecture & Design,ALEXANDER MANN SOLUTIONS,3780.36
Companies House,CH,17/11/2023,Contract Staff,Architecture & Design,ALEXANDER MANN SOLUTIONS,3695.58
Companies House,CH,13/11/2023,Contract Staff,Architecture & Design,ALEXANDER MANN SOLUTIONS,4725.42
Companies House,CH,10/11/2023,Contract Staff,Architecture & Design,ALEXANDER MANN SOLUTIONS,11467.09
Companies House,CH,13/11/2023,Contract Staff,Architecture & Design,ALEXANDER MANN SOLUTIONS,3067.85
Companies House,CH,27/11/2023,Contract Staff,Architecture & Design,ALEXANDER MANN SOLUTIONS,3780.36
Companies House,CH,03/11/2023,Contract Staff,Architecture & Design,ALEXANDER MANN SOLUTIONS,5317.62
Companies House,CH,24/11/2023,Contract Staff,Chief Executive Office,ALEXANDER MANN SOLUTIONS,638.93
Companies House,CH,13/11/2023,Contract Staff,Chief Executive Office,ALEXANDER MANN SOLUTIONS,-656.68
Companies House,CH,13/11/2023,Contract Staff,Chief Executive Office,ALEXANDER MANN SOLUTIONS,1390.61
Companies House,CH,03/11/2023,Contract Staff,Data Management CC,ALEXANDER MANN SOLUTIONS,9450.84
Companies House,CH,10/11/2023,Contract Staff,Data Management CC,ALEXANDER MANN SOLUTIONS,9450.84
Companies House,CH,24/11/2023,Contract Staff,Data Management CC,ALEXANDER MANN SOLUTIONS,18901.68
Companies House,CH,27/11/2023,Contract Staff,"Data, Analytics & Research",ALEXANDER MANN SOLUTIONS,5235.42
Companies House,CH,24/11/2023,Contract Staff,"Data, Analytics & Research",ALEXANDER MANN SOLUTIONS,3906.36
Companies House,CH,17/11/2023,Contract Staff,"Data, Analytics & Research",ALEXANDER MANN SOLUTIONS,5235.42
Companies House,CH,13/11/2023,Contract Staff,"Data, Analytics & Research",ALEXANDER MANN SOLUTIONS,5235.42
Companies House,CH,24/11/2023,Contract Staff,"Data, Analytics & Research",ALEXANDER MANN SOLUTIONS,8190.72
Companies House,CH,13/11/2023,Contract Staff,"Data, Analytics & Research",ALEXANDER MANN SOLUTIONS,3024.29
Companies House,CH,17/11/2023,Contract Staff,"Data, Analytics & Research",ALEXANDER MANN SOLUTIONS,7031.45
Companies House,CH,13/11/2023,Contract Staff,"Data, Analytics & Research",ALEXANDER MANN SOLUTIONS,6804.65
Companies House,CH,24/11/2023,Contract Staff,"Data, Analytics & Research",ALEXANDER MANN SOLUTIONS,4095.36
Companies House,CH,03/11/2023,Contract Staff,"Data, Analytics & Research",ALEXANDER MANN SOLUTIONS,3515.72
Companies House,CH,17/11/2023,Contract Staff,"Data, Analytics & Research",ALEXANDER MANN SOLUTIONS,3780.36
Companies House,CH,13/11/2023,Contract Staff,"Data, Analytics & Research",ALEXANDER MANN SOLUTIONS,3780.36
Companies House,CH,27/11/2023,Contract Staff,"Data, Analytics & Research",ALEXANDER MANN SOLUTIONS,3780.36
Companies House,CH,24/11/2023,Contract Staff,"Data, Analytics & Research",ALEXANDER MANN SOLUTIONS,8190.72
Companies House,CH,17/11/2023,Contract Staff,"Data, Analytics & Research",ALEXANDER MANN SOLUTIONS,3780.36
Companies House,CH,13/11/2023,Contract Staff,"Data, Analytics & Research",ALEXANDER MANN SOLUTIONS,9423.76
Companies House,CH,24/11/2023,Contract Staff,"Data, Analytics & Research",ALEXANDER MANN SOLUTIONS,4095.36
Companies House,CH,15/11/2023,Contract Staff,Infrastructure,Spring Technology Staffing Services Ltd,3411.6
Companies House,CH,10/11/2023,Contract Staff,Infrastructure,ALEXANDER MANN SOLUTIONS,4063.86
Companies House,CH,24/11/2023,Contract Staff,Infrastructure,ALEXANDER MANN SOLUTIONS,4063.86
Companies House,CH,10/11/2023,Contract Staff,Infrastructure,ALEXANDER MANN SOLUTIONS,4063.86
Companies House,CH,24/11/2023,Contract Staff,Infrastructure Engineering,ALEXANDER MANN SOLUTIONS,4095.36
Companies House,CH,17/11/2023,Contract Staff,Infrastructure Engineering,ALEXANDER MANN SOLUTIONS,7815.72
Companies House,CH,17/11/2023,Contract Staff,Infrastructure Engineering,ALEXANDER MANN SOLUTIONS,4725.42
Companies House,CH,17/11/2023,Contract Staff,Infrastructure Engineering,ALEXANDER MANN SOLUTIONS,4095.36
Companies House,CH,08/11/2023,Contract Staff,Infrastructure Engineering,ALEXANDER MANN SOLUTIONS,8190.72
Companies House,CH,17/11/2023,Contract Staff,Infrastructure Engineering,ALEXANDER MANN SOLUTIONS,4410.42
Companies House,CH,10/11/2023,Contract Staff,Infrastructure Engineering,ALEXANDER MANN SOLUTIONS,3780.34
Companies House,CH,27/11/2023,Contract Staff,Infrastructure Engineering,ALEXANDER MANN SOLUTIONS,4410.42
Companies House,CH,10/11/2023,Contract Staff,Infrastructure Engineering,ALEXANDER MANN SOLUTIONS,4095.36
Companies House,CH,27/11/2023,Contract Staff,Infrastructure Engineering,ALEXANDER MANN SOLUTIONS,3907.86
Companies House,CH,24/11/2023,Contract Staff,Infrastructure Engineering,ALEXANDER MANN SOLUTIONS,4725.42
Companies House,CH,03/11/2023,Contract Staff,Infrastructure Engineering,ALEXANDER MANN SOLUTIONS,4410.42
Companies House,CH,03/11/2023,Contract Staff,Infrastructure Engineering,ALEXANDER MANN SOLUTIONS,1890.17
Companies House,CH,10/11/2023,Contract Staff,Infrastructure Engineering,ALEXANDER MANN SOLUTIONS,3907.86
Companies House,CH,10/11/2023,Contract Staff,Infrastructure Engineering,ALEXANDER MANN SOLUTIONS,4410.42
Companies House,CH,17/11/2023,Contract Staff,Intelligence Hub ECL funded,ALEXANDER MANN SOLUTIONS,4410.42
Companies House,CH,27/11/2023,Contract Staff,Intelligence Hub ECL funded,ALEXANDER MANN SOLUTIONS,4410.42
Companies House,CH,13/11/2023,Contract Staff,Intelligence Hub ECL funded,ALEXANDER MANN SOLUTIONS,4410.42
Companies House,CH,13/11/2023,Contract Staff,Intelligence Hub ECL funded,ALEXANDER MANN SOLUTIONS,4410.42
Companies House,CH,27/11/2023,Contract Staff,Late Filing Penalties,ALEXANDER MANN SOLUTIONS,1403.9
Companies House,CH,27/11/2023,Contract Staff,Late Filing Penalties,ALEXANDER MANN SOLUTIONS,1671.31
Companies House,CH,27/11/2023,Contract Staff,Late Filing Penalties,ALEXANDER MANN SOLUTIONS,1103.05
Companies House,CH,10/11/2023,Contract Staff,Late Filing Penalties,INNOVO LAW LTD,3088
Companies House,CH,03/11/2023,Contract Staff,Late Filing Penalties,INNOVO LAW LTD,3758
Companies House,CH,27/11/2023,Contract Staff,Late Filing Penalties,ALEXANDER MANN SOLUTIONS,1448.46
Companies House,CH,27/11/2023,Contract Staff,Late Filing Penalties,ALEXANDER MANN SOLUTIONS,1236.77
Companies House,CH,27/11/2023,Contract Staff,Late Filing Penalties,ALEXANDER MANN SOLUTIONS,1403.9
Companies House,CH,27/11/2023,Contract Staff,Late Filing Penalties,ALEXANDER MANN SOLUTIONS,1537.61
Companies House,CH,17/11/2023,Contract Staff,Procurement,ALEXANDER MANN SOLUTIONS,4644.36
Companies House,CH,03/11/2023,Contract Staff,Procurement,ALEXANDER MANN SOLUTIONS,9288.72
Companies House,CH,20/11/2023,Contract Staff,Procurement,ALEXANDER MANN SOLUTIONS,4644.36
Companies House,CH,27/11/2023,Contract Staff,Procurement,ALEXANDER MANN SOLUTIONS,937.36
Companies House,CH,17/11/2023,Contract Staff,Procurement,ALEXANDER MANN SOLUTIONS,4644.36
Companies House,CH,13/11/2023,Contract Staff,Procurement,ALEXANDER MANN SOLUTIONS,937.36
Companies House,CH,03/11/2023,Contract Staff,Procurement,ALEXANDER MANN SOLUTIONS,4644.36
Companies House,CH,13/11/2023,Contract Staff,Procurement,ALEXANDER MANN SOLUTIONS,4410.42
Companies House,CH,10/11/2023,Contract Staff,Procurement,ALEXANDER MANN SOLUTIONS,4179.92
Companies House,CH,15/11/2023,Contract Staff,Procurement,ALEXANDER MANN SOLUTIONS,5042.94
Companies House,CH,24/11/2023,Contract Staff,Procurement,ALEXANDER MANN SOLUTIONS,4644.36
Companies House,CH,10/11/2023,Contract Staff,Procurement,ALEXANDER MANN SOLUTIONS,4644.36
Companies House,CH,13/11/2023,Contract Staff,Procurement,ALEXANDER MANN SOLUTIONS,4410.42
Companies House,CH,15/11/2023,Contract Staff,Procurement,ALEXANDER MANN SOLUTIONS,4644.36
Companies House,CH,13/11/2023,Contract Staff,Procurement,ALEXANDER MANN SOLUTIONS,4644.36
Companies House,CH,13/11/2023,Contract Staff,Procurement,ALEXANDER MANN SOLUTIONS,899.86
Companies House,CH,17/11/2023,Contract Staff,Procurement,ALEXANDER MANN SOLUTIONS,749.88
Companies House,CH,30/11/2023,Contract Staff,Procurement,ALEXANDER MANN SOLUTIONS,4179.92
Companies House,CH,20/11/2023,Contract Staff,Procurement,ALEXANDER MANN SOLUTIONS,4644.36
Companies House,CH,13/11/2023,Contract Staff,Procurement,ALEXANDER MANN SOLUTIONS,4644.36
Companies House,CH,10/11/2023,Contract Staff,Procurement,ALEXANDER MANN SOLUTIONS,1857.74
Companies House,CH,03/11/2023,Contract Staff,Procurement,ALEXANDER MANN SOLUTIONS,4644.36
Companies House,CH,17/11/2023,Contract Staff,Procurement,ALEXANDER MANN SOLUTIONS,4410.42
Companies House,CH,13/11/2023,Contract Staff,Product Delivery,ALEXANDER MANN SOLUTIONS,4095.36
Companies House,CH,27/11/2023,Contract Staff,Product Delivery,ALEXANDER MANN SOLUTIONS,5985.54
Companies House,CH,13/11/2023,Contract Staff,Product Delivery,ALEXANDER MANN SOLUTIONS,4095.36
Companies House,CH,27/11/2023,Contract Staff,Product Delivery,ALEXANDER MANN SOLUTIONS,3276.29
Companies House,CH,10/11/2023,Contract Staff,Product Delivery,ALEXANDER MANN SOLUTIONS,2394.22
Companies House,CH,15/11/2023,Contract Staff,Product Delivery,ALEXANDER MANN SOLUTIONS,5985.54
Companies House,CH,17/11/2023,Contract Staff,Product Delivery,ALEXANDER MANN SOLUTIONS,4095.36
Companies House,CH,17/11/2023,Contract Staff,Product Delivery,ALEXANDER MANN SOLUTIONS,5985.54
Companies House,CH,13/11/2023,Contract Staff,Product Design,ALEXANDER MANN SOLUTIONS,4725.42
Companies House,CH,10/11/2023,Contract Staff,Product Design,ALEXANDER MANN SOLUTIONS,3326.03
Companies House,CH,17/11/2023,Contract Staff,Product Design,ALEXANDER MANN SOLUTIONS,4410.42
Companies House,CH,17/11/2023,Contract Staff,Product Design,ALEXANDER MANN SOLUTIONS,5040.48
Companies House,CH,24/11/2023,Contract Staff,Product Design,ALEXANDER MANN SOLUTIONS,4410.42
Companies House,CH,17/11/2023,Contract Staff,Product Design,ALEXANDER MANN SOLUTIONS,3541.62
Companies House,CH,03/11/2023,Contract Staff,Product Design,ALEXANDER MANN SOLUTIONS,4410.42
Companies House,CH,10/11/2023,Contract Staff,Product Design,ALEXANDER MANN SOLUTIONS,5040.48
Companies House,CH,27/11/2023,Contract Staff,Product Design,ALEXANDER MANN SOLUTIONS,3541.62
Companies House,CH,24/11/2023,Contract Staff,Product Design,ALEXANDER MANN SOLUTIONS,4788.42
Companies House,CH,13/11/2023,Contract Staff,Product Design,ALEXANDER MANN SOLUTIONS,4095.36
Companies House,CH,27/11/2023,Contract Staff,Product Design,ALEXANDER MANN SOLUTIONS,4927.44
Companies House,CH,03/11/2023,Contract Staff,Product Design,ALEXANDER MANN SOLUTIONS,4725.42
Companies House,CH,10/11/2023,Contract Staff,Product Design,ALEXANDER MANN SOLUTIONS,2956.46
Companies House,CH,17/11/2023,Contract Staff,Product Design,ALEXANDER MANN SOLUTIONS,4927.44
Companies House,CH,17/11/2023,Contract Staff,Product Design,ALEXANDER MANN SOLUTIONS,4410.42
Companies House,CH,13/11/2023,Contract Staff,Product Design,ALEXANDER MANN SOLUTIONS,8190.72
Companies House,CH,10/11/2023,Contract Staff,Product Design,ALEXANDER MANN SOLUTIONS,4788.42
Companies House,CH,24/11/2023,Contract Staff,Product Design,ALEXANDER MANN SOLUTIONS,4311.48
Companies House,CH,13/11/2023,Contract Staff,Product Design,ALEXANDER MANN SOLUTIONS,5235.42
Companies House,CH,10/11/2023,Contract Staff,Product Design,ALEXANDER MANN SOLUTIONS,4410.42
Companies House,CH,13/11/2023,Contract Staff,Product Design,ALEXANDER MANN SOLUTIONS,4410.42
Companies House,CH,24/11/2023,Contract Staff,Product Design,ALEXANDER MANN SOLUTIONS,4725.42
Companies House,CH,15/11/2023,Contract Staff,Product Design,ALEXANDER MANN SOLUTIONS,4788.42
Companies House,CH,17/11/2023,Contract Staff,Product Design,ALEXANDER MANN SOLUTIONS,4788.42
Companies House,CH,10/11/2023,Contract Staff,Product Design,ALEXANDER MANN SOLUTIONS,4311.48
Companies House,CH,13/11/2023,Contract Staff,Product Design,ALEXANDER MANN SOLUTIONS,5235.42
Companies House,CH,27/11/2023,Contract Staff,Product Design,ALEXANDER MANN SOLUTIONS,2866.75
Companies House,CH,17/11/2023,Contract Staff,Product Design,ALEXANDER MANN SOLUTIONS,3685.82
Companies House,CH,17/11/2023,Contract Staff,Product Design,ALEXANDER MANN SOLUTIONS,4410.42
Companies House,CH,24/11/2023,Contract Staff,Product Design,ALEXANDER MANN SOLUTIONS,8376.67
Companies House,CH,24/11/2023,Contract Staff,Product Design,ALEXANDER MANN SOLUTIONS,4410.42
Companies House,CH,10/11/2023,Contract Staff,Product Design,ALEXANDER MANN SOLUTIONS,4927.44
Companies House,CH,13/11/2023,Contract Staff,Product Design,ALEXANDER MANN SOLUTIONS,4410.42
Companies House,CH,13/11/2023,Contract Staff,Product Design,ALEXANDER MANN SOLUTIONS,4311.48
Companies House,CH,10/11/2023,Contract Staff,Product Design,ALEXANDER MANN SOLUTIONS,4095.36
Companies House,CH,17/11/2023,Contract Staff,Product Design,ALEXANDER MANN SOLUTIONS,4725.42
Companies House,CH,17/11/2023,Contract Staff,Product Design,ALEXANDER MANN SOLUTIONS,2956.46
Companies House,CH,13/11/2023,Contract Staff,Product Design,ALEXANDER MANN SOLUTIONS,4927.44
Companies House,CH,27/11/2023,Contract Staff,Product Design,ALEXANDER MANN SOLUTIONS,4725.42
Companies House,CH,03/11/2023,Contract Staff,Product Design,ALEXANDER MANN SOLUTIONS,4410.42
Companies House,CH,13/11/2023,Contract Staff,Product Design,ALEXANDER MANN SOLUTIONS,3307.8
Companies House,CH,10/11/2023,Contract Staff,Product Design,ALEXANDER MANN SOLUTIONS,5040.48
Companies House,CH,03/11/2023,Contract Staff,Product Design,ALEXANDER MANN SOLUTIONS,3541.62
Companies House,CH,10/11/2023,Contract Staff,Product Design,ALEXANDER MANN SOLUTIONS,4725.42
Companies House,CH,13/11/2023,Contract Staff,Product Design,ALEXANDER MANN SOLUTIONS,4095.36
Companies House,CH,24/11/2023,Contract Staff,Product Design,ALEXANDER MANN SOLUTIONS,5040.48
Companies House,CH,17/11/2023,Contract Staff,Product Design,ALEXANDER MANN SOLUTIONS,4725.42
Companies House,CH,03/11/2023,Contract Staff,Product Design,ALEXANDER MANN SOLUTIONS,3695.58
Companies House,CH,24/11/2023,Contract Staff,Product Design,ALEXANDER MANN SOLUTIONS,3695.58
Companies House,CH,17/11/2023,Contract Staff,Product Design,ALEXANDER MANN SOLUTIONS,4311.48
Companies House,CH,03/11/2023,Contract Staff,Product Design,ALEXANDER MANN SOLUTIONS,4788.42
Companies House,CH,03/11/2023,Contract Staff,Product Design,ALEXANDER MANN SOLUTIONS,3695.58
Companies House,CH,10/11/2023,Contract Staff,Product Design,ALEXANDER MANN SOLUTIONS,4410.42
Companies House,CH,13/11/2023,Contract Staff,Projects,ALEXANDER MANN SOLUTIONS,4312.62
Companies House,CH,10/11/2023,Contract Staff,Projects,ALEXANDER MANN SOLUTIONS,4049.16
Companies House,CH,13/11/2023,Contract Staff,Projects,ALEXANDER MANN SOLUTIONS,4049.16
Companies House,CH,17/11/2023,Contract Staff,Projects,ALEXANDER MANN SOLUTIONS,4312.62
Companies House,CH,10/11/2023,Contract Staff,Projects,ALEXANDER MANN SOLUTIONS,4312.62
Companies House,CH,27/11/2023,Contract Staff,Projects,ALEXANDER MANN SOLUTIONS,4049.16
Companies House,CH,17/11/2023,Contract Staff,Projects,ALEXANDER MANN SOLUTIONS,4049.16
Companies House,CH,24/11/2023,Contract Staff,Projects,ALEXANDER MANN SOLUTIONS,4312.62
Companies House,CH,17/11/2023,Contract Staff,Strategic Finance,ALEXANDER MANN SOLUTIONS,2520.24
Companies House,CH,27/11/2023,Contract Staff,Strategic Finance,ALEXANDER MANN SOLUTIONS,2520.24
Companies House,CH,24/11/2023,Contract Staff,Strategic Finance,ALEXANDER MANN SOLUTIONS,6804.65
Companies House,CH,03/11/2023,Contract Staff,Strategic Finance,ALEXANDER MANN SOLUTIONS,3780.36
Companies House,CH,13/11/2023,Contract Staff,Strategic Finance,ALEXANDER MANN SOLUTIONS,7560.72
Companies House,CH,10/11/2023,Contract Staff,Strategic Finance,ALEXANDER MANN SOLUTIONS,3780.36
Companies House,CH,15/11/2023,Contract Staff,WebOps & DevOps,Spring Technology Staffing Services Ltd,4264.5
Companies House,CH,15/11/2023,Contract Staff,WebOps & DevOps,Spring Technology Staffing Services Ltd,4264.5
Companies House,CH,15/11/2023,Contract Staff,WebOps & DevOps,Spring Technology Staffing Services Ltd,4264.5
Companies House,CH,15/11/2023,Contract Staff,WebOps & DevOps,Spring Technology Staffing Services Ltd,4264.5
Companies House,CH,15/11/2023,Contract Staff,WebOps & DevOps,Spring Technology Staffing Services Ltd,4264.5
Companies House,CH,15/11/2023,Contract Staff,WebOps & DevOps,Spring Technology Staffing Services Ltd,4264.5
Companies House,CH,29/11/2023,Cycle to work salary sacrifice,Accounting,EDENRED LTD CYCLE TO WORK,1249.17
Companies House,CH,10/11/2023,Electricity,Building Services,EDF ENERGY CUSTOMERS PLC,66140.76
Companies House,CH,10/11/2023,Electricity,Regional Estates - Belfast,"Electric Ireland, ESB Independent Energy",1658.41
Companies House,CH,10/11/2023,Electricity,Regional Estates - London,EDF ENERGY CUSTOMERS PLC,744.41
Companies House,CH,10/11/2023,External managed services,Filing Service,CoreFiling,7800
Companies House,CH,08/11/2023,External Managed Services,Portfolio,KAINOS SOFTWARE LTD,245797.67
Companies House,CH,08/11/2023,External Managed Services,Portfolio,KAINOS SOFTWARE LTD,556540.83
Companies House,CH,13/11/2023,Extl Scrum Resource Costs,Architecture & Design,FDM GROUP,85140
Companies House,CH,13/11/2023,Extl Scrum Resource Costs,Architecture & Design,FDM GROUP,105660
Companies House,CH,13/11/2023,Extl Scrum Resource Costs,Architecture & Design,FDM GROUP,75480
Companies House,CH,20/11/2023,Facilities Management,Regional Estates - Edinburgh,HM Revenue & Customs,5463
Companies House,CH,20/11/2023,Facilities Management,Regional Estates - Edinburgh,HM Revenue & Customs,1761
Companies House,CH,15/11/2023,Gas,Building Services,TotalEnergies Gas & Power,2653.76
Companies House,CH,06/11/2023,Gazette Notices,Filing,Stationery Office (Williams Lea),9217.4
Companies House,CH,15/11/2023,Gazette Notices,Filing,Stationery Office (Williams Lea),9217.4
Companies House,CH,17/11/2023,Government Legal,Filing,GOVERNMENT LEGAL DEPARTMENT,66036.91
Companies House,CH,29/11/2023,Government Legal,Filing,GOVERNMENT LEGAL DEPARTMENT,70255.2
Companies House,CH,01/11/2023,Government Legal,Legal Services,GOVERNMENT LEGAL DEPARTMENT,1087.2
Companies House,CH,30/11/2023,Hardware & Software Maintenance,HR Strategy & Policy,MHR,4216.91
Companies House,CH,24/11/2023,Hardware & Software Maintenance,Infrastructure,Oracle,32589.2
Companies House,CH,08/11/2023,Hardware & Software Maintenance,Infrastructure,FREEDOM COMMUNICATIONS (UK) LIMITED,3919.01
Companies House,CH,03/11/2023,Hardware & Software Maintenance,Infrastructure,SNOW SOFTWARE UK,13618.25
Companies House,CH,08/11/2023,Hardware & Software Maintenance,Infrastructure,FREEDOM COMMUNICATIONS (UK) LIMITED,3919.01
Companies House,CH,08/11/2023,Hardware & Software Maintenance,Infrastructure,FREEDOM COMMUNICATIONS (UK) LIMITED,-3919.01
Companies House,CH,08/11/2023,Hardware & Software Maintenance,Infrastructure Engineering,INSIGHT DIRECT (UK) LTD,60255.16
Companies House,CH,01/11/2023,Hardware & Software Maintenance,WebOps & DevOps,Cloud Software Group,224342
Companies House,CH,20/11/2023,Hardware & Software Maintenance,WebOps & DevOps,Ensono Digital Limited,11666.67
Companies House,CH,03/11/2023,Independent adjudication,Late Filing Penalties,Independent adjudication,4640
Companies House,CH,20/11/2023,IT Costs,Regional Estates - Edinburgh,HM Revenue & Customs,540
Companies House,CH,15/11/2023,Leasehold Improvements This Yr,Estates Projects,BCM CONSTRUCTION LIMITED,14611.34
Companies House,CH,13/11/2023,Legal Disbursements,Late Filing Penalties Accounting,INDESSER,284245.43
Companies House,CH,13/11/2023,Legal Disbursements,Late Filing Penalties Accounting,INDESSER,49579.82
Companies House,CH,10/11/2023,Legal Expenses General,DaT Management CC,Mills & Reeve LLP,3665
Companies House,CH,24/11/2023,London Maintenance,Regional Estates - London,GOVERNMENT PROPERTY AGENCY (Montagu Evans),605.48
Companies House,CH,24/11/2023,Maintenance,Building Services,GOVERNMENT PROPERTY AGENCY (Montagu Evans),5449.08
Companies House,CH,24/11/2023,Maintenance,Building Services,GOVERNMENT PROPERTY AGENCY (Montagu Evans),788.88
Companies House,CH,10/11/2023,Miscellaneous licences,Scotland,Equifax PLC,856.67
Companies House,CH,22/11/2023,Occ Health Svcs & Consultancy,HR Strategy & Policy,HEALTH MANAGEMENT LTD,892.19
Companies House,CH,27/11/2023,Occupational Health Contract,HR Strategy & Policy,Health Partners Duradiamond Ltd,5700.37
Companies House,CH,29/11/2023,Occupational Health Contract,HR Strategy & Policy,Health Partners Duradiamond Ltd,3112
Companies House,CH,17/11/2023,Occupational Health Contract,HR Strategy & Policy,Health Partners Duradiamond Ltd,5593.43
Companies House,CH,13/11/2023,Occupational Health Contract,HR Strategy & Policy,Health Partners Duradiamond Ltd,4446.72
Companies House,CH,27/11/2023,Office Furniture,Building Services,D&G OFFICE INTERIORS LTD,1541
Companies House,CH,10/11/2023,Office Furniture,Building Services,D&G OFFICE INTERIORS LTD,1756.02
Companies House,CH,10/11/2023,Office Machinery Maintenance,Filing,Digitrol Limited,1512
Companies House,CH,15/11/2023,Postage,Filing,Royal Mail,10432.95
Companies House,CH,29/11/2023,Postage,Filing,Royal Mail,10558.36
Companies House,CH,10/11/2023,Postage,Filing,Royal Mail,11551.02
Companies House,CH,06/11/2023,Postage,Filing,Royal Mail,12880.79
Companies House,CH,06/11/2023,Postage,Filing,Royal Mail,7809.51
Companies House,CH,24/11/2023,Postage,Filing,Royal Mail,10075.34
Companies House,CH,15/11/2023,Print and Mailing Contract,Filing,APS GROUP,120104.84
Companies House,CH,22/11/2023,Print and Mailing Contract,Filing,APS GROUP,84000.92
Companies House,CH,10/11/2023,Print and Mailing Contract,Filing,APS GROUP,1160.72
Companies House,CH,29/11/2023,Print and Mailing Contract,Filing,APS GROUP,69536.05
Companies House,CH,06/11/2023,Print and Mailing Contract,Filing,APS GROUP,69184.88
Companies House,CH,03/11/2023,Print and Mailing Contract,Filing,APS GROUP,73435.13
Companies House,CH,10/11/2023,Print and Mailing Contract,Late Filing Penalties Accounting,APS GROUP,28466.8
Companies House,CH,24/11/2023,RATES,Building Services,City and County of Cardiff,53945.83
Companies House,CH,29/11/2023,RATES,Regional Estates - Edinburgh,The City of Edinburgh Council,8198.42
Companies House,CH,16/11/2023,RATES,Regional Estates - London,CITY OF WESTMINSTER,2287.59
Companies House,CH,16/11/2023,RATES,Regional Estates - London,CITY OF WESTMINSTER,3529.26
Companies House,CH,03/11/2023,Rent,Regional Estates - Edinburgh,KNIGHT FRANK,35161.86
Companies House,CH,20/11/2023,Rent,Regional Estates - Edinburgh,HM Revenue & Customs,5791
Companies House,CH,20/11/2023,Rent,Regional Estates - Edinburgh,HM Revenue & Customs,17000
Companies House,CH,20/11/2023,Repayments-Lease Liability CL,Organisational Overheads,GOVERNMENT PROPERTY AGENCY (Montagu Evans),441996.61
Companies House,CH,10/11/2023,Restaurant Services,Building Services,ARAMARK,4020.62
Companies House,CH,03/11/2023,Rolling Maintenance & minor contracts,Building Services,Twofold Ltd,3443.1
Companies House,CH,20/11/2023,Security,Regional Estates - Edinburgh,HM Revenue & Customs,941
Companies House,CH,20/11/2023,Security,Regional Estates - Edinburgh,HM Revenue & Customs,2792
Companies House,CH,08/11/2023,Service charges,Regional Estates - Belfast,BELFAST CENTRAL BUSINESS DISTRICT (BID),1567.5
Companies House,CH,03/11/2023,Service charges,Regional Estates - Edinburgh,KNIGHT FRANK,11995.84
Companies House,CH,24/11/2023,Service charges,Regional Estates - London,Jon Christopher Chartered Surveyors,41727.35
Companies House,CH,06/11/2023,Software Licence,HR Service delivery,Edenred Rewards,7313.15
Companies House,CH,03/11/2023,Stationery,Filing,A McLay & Company Ltd,1500
Companies House,CH,03/11/2023,Stationery,Filing,A McLay & Company Ltd,2500
Companies House,CH,03/11/2023,Stationery,Filing,A McLay & Company Ltd,2000
Companies House,CH,10/11/2023,Stationery,Procurement,Banner,7203.82
Companies House,CH,22/11/2023,Telecom Rental,Infrastructure,AVOIRA LTD,3324.76
Companies House,CH,10/11/2023,Telephone Costs,Infrastructure,TELEFONICA UK LTD,1960.9
Companies House,CH,20/11/2023,TFM Management fees,Organisational Overheads,GOVERNMENT PROPERTY AGENCY (Montagu Evans),3143.75
Companies House,CH,06/11/2023,Training Central,Training,BITESIZE COMPUTER TRAINING LTD,500
Companies House,CH,27/11/2023,Training Central,Training,ALEXANDER MANN SOLUTIONS,809.28
Companies House,CH,17/11/2023,Training Central,Training,BITESIZE COMPUTER TRAINING LTD,500
Companies House,CH,24/11/2023,Training Central,Training,Cardiff Metropolitan University,640
Companies House,CH,13/11/2023,Training Central,Training,CSL-KPMG LLP,1846.81
Companies House,CH,13/11/2023,Training Central,Training,ALEXANDER MANN SOLUTIONS,809.28
Companies House,CH,20/11/2023,Training Central,Training,CSL-KPMG LLP,1692
Companies House,CH,13/11/2023,Training Central,Training,ALEXANDER MANN SOLUTIONS,1820.88
Companies House,CH,29/11/2023,Training Central,Training,CSL-KPMG LLP,1722
Companies House,CH,30/11/2023,Training Central,Training,IPP Education Limited,1485
Companies House,CH,24/11/2023,Training Directorate,Training,CSL-KPMG LLP,1549
Companies House,CH,24/11/2023,Training Directorate,Training,INTELLECTUAL PROPERTY OFFICE,1449
Companies House,CH,24/11/2023,Training Directorate,Training,CSL-KPMG LLP,1274
Companies House,CH,01/11/2023,Training Directorate,Training,CSL-KPMG LLP,1846.81
Companies House,CH,24/11/2023,Training Directorate,Training,CSL-KPMG LLP,1274
Companies House,CH,17/11/2023,Training Directorate,Training,CSL-KPMG LLP,1722
Companies House,CH,13/11/2023,Training Directorate,Training,CSL-KPMG LLP,1940
Companies House,CH,17/11/2023,Training Directorate,Training,CSL-KPMG LLP,1722
Companies House,CH,22/11/2023,Training External,Training,CSL-KPMG LLP,2112
Companies House,CH,22/11/2023,Training External,Training,CSL-KPMG LLP,2112
Companies House,CH,13/11/2023,Training People Transformation,Training,ALEXANDER MANN SOLUTIONS,1409.4
Companies House,CH,17/11/2023,Training People Transformation,Training,ALEXANDER MANN SOLUTIONS,695.3
Companies House,CH,24/11/2023,Training People Transformation,Training,ALEXANDER MANN SOLUTIONS,695.3
Companies House,CH,13/11/2023,Training People Transformation,Training,ALEXANDER MANN SOLUTIONS,704.7
Companies House,CH,08/11/2023,Travel,Organisational Overheads,CLARITY TRAVEL LIMITED,11076.75
Companies House,CH,06/11/2023,Travel - staff,Organisational Overheads,VEEZU LTD,1588.88
Companies House,CH,10/11/2023,User Acceptance Testing,Portfolio,PEOPLE FOR RESEARCH,801
Companies House,CH,03/11/2023,User Acceptance Testing,Portfolio,PEOPLE FOR RESEARCH,692
Companies House,CH,14/11/2023,Utilisation of provision in ye,Organisational Overheads,GOVERNMENT LEGAL DEPARTMENT,833
Companies House,CH,20/11/2023,Utilities,Regional Estates - Edinburgh,HM Revenue & Customs,1073
Companies House,CH,20/11/2023,Utilities,Regional Estates - Edinburgh,HM Revenue & Customs,3148
Companies House,CH,10/11/2023,Water,Building Services,Dwr Cymru Welsh Water,3540.52
Companies House,CH,22/11/2023,Wood Pellets,Building Services,AMP BIOMASS FUELS LTD,6456.08
Companies House,CH,10/11/2023,Wood Pellets,Building Services,AMP BIOMASS FUELS LTD,6607.1
